bitfinex/quotes_SOLUSD_20250207
["timestamp","ask_amount","ask_price","bid_price","bid_amount"]
[1738945172630,0.03,197.6,197.55,24.64300593]
[1738945172940,0.03,197.6,197.56,24.64300593]
[1738945173642,0.03,197.6,197.54,24.64300593]
[1738945174035,0.03,197.6,197.56,24.64300593]
[1738945174241,0.03,197.6,197.58,24.64300593]
[1738945174439,0.03,197.6,197.59,24.64300593]
[1738945175246,0.03,197.6,197.57,24.64300593]
[1738945175442,0.03,197.6,197.56,24.64300593]
[1738945175832,0.03,197.6,197.59,24.64300593]
[1738945176133,0.03,197.6,197.58,24.64300593]
[1738945176448,0.03,197.6,197.59,24.64300593]
[1738945177145,0.03,197.6,197.58,24.64300593]
[1738945177325,0.03,197.6,197.57,24.64300593]
[1738945177522,0.03,197.6,197.55,24.64300593]
[1738945177728,0.03,197.6,197.57,24.64300593]
[1738945177934,0.03,197.6,197.56,24.64300593]
[1738945178138,0.03,197.67,197.59,69.53699186]
[1738945178354,0.03,197.67,197.66,24.64300593]
[1738945178528,0.03,197.8,197.69,20.0]
[1738945178864,0.03,197.8,197.75,24.64300593]
[1738945179040,0.03,197.8,197.74,20.0]
[1738945179232,0.03,197.8,197.79,24.64300593]
[1738945179559,15.57150564,197.87,197.79,49.28601186]
[1738945179730,15.57150564,197.87,197.8,0.12549]
[1738945179928,15.57150564,197.87,197.84,24.76849593]
[1738945180353,15.57150564,197.87,197.84,24.64300593]
[1738945181024,2.92723263,197.85,197.84,24.64300593]
[1738945181233,15.57150564,197.87,197.85,0.12549]
[1738945181469,29.90647124,197.88,197.86,69.41150186]
[1738945181634,46.74849199,197.91,197.9,20.0]
[1738945181830,6.6215,198.04,197.9,54.33901186]
[1738945181831,31.26450593,198.04,197.9,54.33901186]
[1738945182034,24.64300593,198.03,197.95,24.64300593]
[1738945182247,20.0,198.01,197.97,24.64300593]
[1738945182462,20.0,198.01,197.9,29.69600593]
[1738945182463,20.0,198.01,197.96,24.64300593]
[1738945182840,20.0,198.01,197.95,39.80775193]
[1738945183267,39.80775193,198.0,197.93,39.80775193]
[1738945183565,13.41184853,197.97,197.9,39.80775193]
[1738945183776,44.85825193,198.0,197.93,39.80775193]
[1738945184064,20.0,197.99,197.94,39.80775193]
[1738945184449,44.85755193,198.03,197.96,39.80775193]
[1738945184754,6.6215,198.04,197.98,39.80775193]
[1738945184962,81.3,198.06,198.01,39.80775193]
[1738945185170,5.0466,198.15,198.03,20.0]
[1738945185343,5.0466,198.15,198.13,39.80775193]
[1738945185543,6.4858,198.29,198.13,39.80775193]
[1738945185544,12.6119,198.23,198.13,39.80775193]
[1738945185763,5.0438,198.26,198.15,39.80775193]
[1738945186080,5.0438,198.26,198.17,39.80775193]
[1738945186081,39.80775193,198.25,198.17,39.80775193]
[1738945186361,39.80775193,198.24,198.16,39.80775193]
[1738945186667,39.80775193,198.22,198.14,39.80775193]
[1738945186848,39.80775193,198.24,198.16,39.80775193]
[1738945187048,121.10775193,198.26,198.18,39.80775193]
[1738945187474,39.80775193,198.25,198.18,39.80775193]
[1738945187639,6.4858,198.29,198.14,20.25098]
[1738945188061,6.4858,198.29,198.17,0.12549]
[1738945188253,6.4858,198.29,198.16,0.12549]
[1738945188556,6.0419,198.34,198.14,20.0]
[1738945188758,39.80775193,198.26,198.18,39.80775193]
[1738945189056,39.80775193,198.22,198.14,39.80775193]
[1738945189363,39.80775193,198.22,198.16,39.80775193]
[1738945189568,39.80775193,198.23,198.11,5.17319]
[1738945189750,20.0,198.22,198.05,5.0492]
[1738945189956,13.41184853,198.21,198.12,7.90934442]
[1738945190163,0.94628653,198.2,198.12,7.90934442]
[1738945190384,0.94628653,198.21,198.12,7.90934442]
[1738945190548,6.70928,198.2,198.01,5.0502]
[1738945190753,15.26676379,198.12,198.05,39.80775193]
[1738945191076,20.31436379,198.12,198.05,39.80775193]
[1738945191384,39.80775193,198.11,198.03,39.80775193]
[1738945191587,39.80775193,198.09,198.02,39.80775193]
[1738945191755,39.80775193,198.1,198.02,39.80775193]
[1738945191960,39.80775193,198.07,198.0,7.90934442]
[1738945192163,39.80775193,198.05,197.98,39.80775193]
[1738945192467,39.80775193,198.04,197.97,39.80775193]
[1738945192786,0.94668565,198.09,197.96,39.80775193]
[1738945192787,39.80775193,198.03,197.96,39.80775193]
[1738945193078,39.80775193,198.0,197.92,39.80775193]
[1738945193284,39.80775193,198.02,197.94,39.80775193]
[1738945193651,5.0494,198.04,197.95,39.80775193]
[1738945193652,39.80775193,198.04,197.95,39.80775193]
[1738945193863,39.80775193,198.03,197.95,39.80775193]
[1738945194265,39.80775193,198.01,197.94,39.80775193]
[1738945194479,39.80775193,198.0,197.93,39.80775193]
[1738945194787,20.0,198.02,197.9,5.0529]
[1738945194969,39.80775193,197.96,197.89,39.80775193]
[1738945195165,0.9472374,198.01,197.89,39.80775193]
[1738945195166,39.80775193,197.97,197.89,39.80775193]
[1738945195367,39.80775193,197.99,197.92,39.80775193]
[1738945195568,39.80775193,198.01,197.94,39.80775193]
[1738945195763,39.80775193,197.97,197.88,5.0533]
[1738945195987,39.80775193,197.93,197.86,39.80775193]
[1738945196179,39.80775193,197.94,197.87,39.80775193]
[1738945196370,0.94742143,197.93,197.82,39.80775193]
[1738945196684,39.80775193,197.87,197.79,39.80775193]
[1738945196892,0.12549,197.89,197.76,5.0566]
[1738945197064,39.80775193,197.81,197.73,44.86495193]
[1738945197456,13.41184853,197.86,197.73,44.86495193]
[1738945197457,39.80775193,197.83,197.75,39.80775193]
[1738945197661,39.80775193,197.84,197.76,39.80775193]
[1738945197871,39.80775193,197.89,197.81,39.80775193]
[1738945198082,39.80775193,197.89,197.74,0.12549]
[1738945198083,45.83995193,197.91,197.83,39.80775193]
[1738945198287,39.80775193,197.95,197.87,39.80775193]
[1738945198559,45.94515193,197.98,197.9,39.80775193]
[1738945199191,39.80775193,197.97,197.89,39.80775193]
[1738945200191,39.80775193,197.95,197.89,39.80775193]
[1738945200491,39.80775193,197.95,197.86,5.054]
[1738945200492,45.94515193,197.98,197.9,39.80775193]
[1738945200695,39.80775193,197.96,197.88,39.80775193]
[1738945201000,39.80775193,197.96,197.89,39.80775193]
[1738945201166,39.80775193,197.95,197.88,39.80775193]
[1738945201365,39.80775193,197.97,197.88,39.80775193]
[1738945201890,39.80775193,197.97,197.9,39.80775193]
[1738945202404,39.80775193,197.97,197.91,5.0528]
[1738945202779,13.41184853,198.01,197.92,39.80775193]
[1738945202780,39.80775193,198.01,197.92,39.80775193]
[1738945202982,39.80775193,198.03,197.94,39.80775193]
[1738945203666,39.80775193,198.03,197.96,39.80775193]
[1738945203868,39.80775193,198.05,197.98,39.80775193]
[1738945204069,39.80775193,198.07,197.98,39.80775193]
[1738945204387,39.80775193,198.09,198.02,39.80775193]
[1738945204570,6.3992,198.1,198.05,39.80775193]
[1738945204771,41.37235193,198.13,198.05,39.80775193]
[1738945204772,39.80775193,198.13,198.05,39.80775193]
[1738945205301,39.80775193,198.09,198.02,39.80775193]
[1738945205797,39.80775193,198.15,198.07,39.80775193]
[1738945206002,6.0604,198.17,198.12,39.80775193]
[1738945206898,39.80775193,198.2,198.12,39.80775193]
[1738945207102,39.80775193,198.23,198.15,39.80775193]
[1738945207685,39.80775193,198.19,198.12,39.80775193]
[1738945207990,44.34805193,198.23,198.14,39.80775193]
[1738945208200,45.87685193,198.24,198.17,39.80775193]
[1738945208501,6.0691,198.24,198.18,39.80775193]
[1738945208672,6.0691,198.24,198.19,39.80775193]
[1738945208673,0.03,198.24,198.19,39.80775193]
[1738945208880,0.03,198.24,198.13,17.79049]
[1738945208881,0.03,198.23,198.16,39.80775193]
[1738945209090,0.03,198.23,198.19,39.80775193]
[1738945209566,0.03,198.23,198.22,39.80775193]
[1738945209770,0.03,198.23,198.22,39.93324193]
[1738945209987,0.03,198.23,198.22,40.05873193]
[1738945210203,50.54405193,198.38,198.26,0.12549]
[1738945210403,6.1994,198.38,198.31,39.80775193]
[1738945210606,39.80775193,198.37,198.29,39.80775193]
[1738945210908,39.80775193,198.36,198.29,39.80775193]
[1738945211201,50.54395193,198.38,198.3,39.80775193]
[1738945211401,50.54395193,198.38,198.26,0.12549]
[1738945211402,39.80775193,198.36,198.29,39.80775193]
[1738945211571,39.80775193,198.36,198.27,39.80775193]
[1738945211775,39.80775193,198.32,198.23,5.0444]
[1738945212007,39.80775193,198.32,198.17,12.615]
[1738945212008,22.078,198.38,198.25,39.80775193]
[1738945212301,39.80775193,198.37,198.3,39.80775193]
[1738945212496,4.5361,198.41,198.34,39.80775193]
[1738945212695,4.5657,198.43,198.37,39.80775193]
[1738945212895,4.5656,198.43,198.37,39.80775193]
[1738945213200,39.80775193,198.42,198.35,39.80775193]
[1738945213387,4.5656,198.43,198.36,39.80775193]
[1738945213388,44.37335193,198.43,198.36,39.80775193]
[1738945213702,39.80775193,198.42,198.35,39.80775193]
[1738945214276,39.80775193,198.4,198.33,39.80775193]
[1738945214488,39.80775193,198.4,198.32,39.80775193]
[1738945214688,39.80775193,198.42,198.35,39.80775193]
[1738945214877,44.34375193,198.42,198.35,39.80775193]
[1738945215094,39.80775193,198.41,198.34,39.80775193]
[1738945215294,39.80775193,198.37,198.3,39.80775193]
[1738945215487,13.53733853,198.38,198.22,5.0448]
[1738945215695,20.0,198.39,198.22,17.657]
[1738945215994,20.0,198.39,198.26,0.25098]
[1738945216201,29.28734853,198.42,198.27,5.0436]
[1738945216202,4.5362,198.4,198.27,5.0436]
[1738945216384,11.3395,198.42,198.27,5.0436]
[1738945216385,4.536,198.42,198.27,5.0436]
[1738945216583,44.34375193,198.42,198.34,39.80775193]
[1738945216902,39.80775193,198.42,198.34,39.80775193]
[1738945217501,39.80775193,198.42,198.35,39.80775193]
[1738945217900,39.80775193,198.38,198.31,39.80775193]
[1738945218083,39.80775193,198.37,198.29,39.80775193]
[1738945218288,4.5656,198.43,198.3,20.0]
[1738945218485,39.80775193,198.38,198.3,59.80775193]
[1738945218717,13.41184853,198.42,198.25,5.0441]
[1738945218884,0.94539478,198.41,198.26,20.0]
[1738945219093,39.80775193,198.33,198.25,44.85185193]
[1738945219289,39.80775193,198.31,198.24,39.80775193]
[1738945219597,39.80775193,198.29,198.22,39.80775193]
[1738945219785,0.12549,198.39,198.23,2.0]
[1738945219786,39.80775193,198.39,198.23,2.0]
[1738945219988,15.9046,198.43,198.26,21.25098]
[1738945220181,0.03,198.43,198.3,0.25098]
[1738945220387,0.03,198.43,198.34,20.0]
[1738945220789,0.03,198.43,198.31,17.6491]
[1738945221085,0.03,198.43,198.32,39.80775193]
[1738945221086,39.80775193,198.4,198.32,39.80775193]
[1738945221284,39.80775193,198.42,198.34,39.80775193]
[1738945221495,39.80775193,198.41,198.35,39.80775193]
[1738945221701,39.83775193,198.43,198.36,39.80775193]
[1738945222193,0.03,198.43,198.37,39.80775193]
[1738945222390,39.80775193,198.41,198.33,44.84965193]
[1738945222591,39.80775193,198.41,198.33,39.80775193]
[1738945222805,39.80775193,198.39,198.31,39.80775193]
[1738945223002,39.80775193,198.4,198.32,39.80775193]
[1738945223309,0.03,198.43,198.3,39.80775193]
[1738945223310,39.80775193,198.38,198.3,39.80775193]
[1738945223516,6.479,198.39,198.26,5.0438]
[1738945224383,6.479,198.39,198.26,39.80775193]
[1738945224384,39.80775193,198.34,198.26,39.80775193]
[1738945224709,4.5367,198.38,198.28,39.80775193]
[1738945224710,39.80775193,198.36,198.28,39.80775193]
[1738945225086,39.80775193,198.37,198.29,39.80775193]
[1738945225402,39.80775193,198.33,198.26,20.0]
[1738945225609,39.80775193,198.31,198.23,39.80775193]
[1738945225789,39.80775193,198.29,198.22,39.80775193]
[1738945225993,39.80775193,198.27,198.2,39.80775193]
[1738945226287,44.34705193,198.27,198.19,44.85325193]
[1738945226510,39.80775193,198.26,198.19,44.85325193]
[1738945227012,39.80775193,198.23,198.16,39.80775193]
[1738945227193,39.80775193,198.25,198.16,39.80775193]
[1738945227389,4.5393,198.27,198.15,44.85415193]
[1738945227390,39.80775193,198.23,198.15,44.85415193]
[1738945227694,39.80775193,198.24,198.15,44.85415193]
[1738945227899,39.80775193,198.22,198.15,39.80775193]
[1738945228108,39.80775193,198.22,198.14,5.0469]
[1738945228308,39.80775193,198.22,198.16,5.0464]
[1738945228506,13.41184853,198.28,198.16,5.0464]
[1738945228507,6.3865,198.32,198.19,39.80775193]
[1738945228718,6.3865,198.32,198.26,39.80775193]
[1738945229094,44.34535193,198.34,198.27,39.80775193]
[1738945229299,39.80775193,198.36,198.27,39.80775193]
[1738945229510,39.80775193,198.34,198.27,39.80775193]
[1738945229711,45.81535193,198.38,198.31,39.80775193]
[1738945229994,39.80775193,198.36,198.29,39.80775193]
[1738945230298,39.80775193,198.34,198.27,39.80775193]
[1738945230500,39.80775193,198.36,198.29,39.80775193]
[1738945230706,10.5443,198.38,198.25,0.12549]
[1738945230707,45.81535193,198.38,198.31,39.80775193]
[1738945230909,50.35205193,198.38,198.31,39.80775193]
[1738945231122,50.35205193,198.38,198.29,39.80775193]
[1738945231123,39.80775193,198.36,198.29,39.80775193]
[1738945231321,39.80775193,198.33,198.25,39.80775193]
[1738945231494,39.80775193,198.31,198.23,39.80775193]
[1738945232101,39.80775193,198.3,198.23,39.80775193]
[1738945232449,39.80775193,198.32,198.23,44.85235193]
[1738945232625,39.80775193,198.27,198.2,39.80775193]
[1738945232792,39.80775193,198.29,198.22,39.80775193]
[1738945232995,39.80775193,198.31,198.24,39.80775193]
[1738945233217,44.34565193,198.33,198.24,39.80775193]
[1738945233418,39.80775193,198.33,198.26,39.80775193]
[1738945233628,44.34575193,198.33,198.26,39.80775193]
[1738945233838,39.80775193,198.29,198.22,39.80775193]
[1738945234134,39.80775193,198.31,198.22,39.80775193]
[1738945234308,4.538,198.33,198.26,39.80775193]
[1738945234309,39.80775193,198.33,198.26,39.80775193]
[1738945234509,39.80775193,198.33,198.25,5.0441]
[1738945234705,39.80775193,198.3,198.23,44.85215193]
[1738945235432,39.80775193,198.3,198.24,0.063]
[1738945235616,39.80775193,198.28,198.24,0.063]
[1738945235931,16.95384563,198.33,198.24,0.063]
[1738945236131,39.80775193,198.25,198.24,0.063]
[1738945236341,44.34745193,198.25,198.24,0.063]
[1738945237038,0.94606157,198.28,198.24,0.063]
[1738945237215,39.80775193,198.35,198.27,39.80775193]
[1738945237532,39.80775193,198.33,198.25,39.80775193]
[1738945238517,39.80775193,198.33,198.26,5.0438]
[1738945238713,12.31726224,198.38,198.26,5.0438]
[1738945238714,39.80775193,198.35,198.26,5.0438]
[1738945238923,39.80775193,198.35,198.27,39.80775193]
[1738945239108,39.80775193,198.35,198.28,0.12549]
[1738945239314,0.03,198.38,198.31,39.80775193]
[1738945239819,4.5667,198.38,198.31,39.80775193]
[1738945240128,39.80775193,198.37,198.29,39.80775193]
[1738945240305,39.80775193,198.35,198.27,39.80775193]
[1738945240509,44.34515193,198.35,198.27,44.85115193]
[1738945240823,44.34485193,198.37,198.29,39.80775193]
[1738945241029,0.03,198.38,198.31,39.80775193]
[1738945241407,0.03,198.38,198.35,39.80775193]
[1738945241614,0.03,198.38,198.33,39.80775193]
[1738945242108,0.03,198.38,198.37,39.80775193]
[1738945242504,0.03,198.38,198.36,5.0413]
[1738945242919,0.03,198.38,198.37,39.80775193]
[1738945243117,0.03,198.38,198.36,5.0413]
[1738945243426,0.03,198.38,198.35,44.84925193]
[1738945243607,0.03,198.38,198.31,39.80775193]
[1738945244520,39.80775193,198.37,198.29,44.85075193]
[1738945244721,39.80775193,198.37,198.29,39.80775193]
[1738945244915,4.5667,198.38,198.29,44.85075193]
[1738945245115,0.03,198.38,198.31,39.80775193]
[1738945245438,39.83775193,198.38,198.31,39.80775193]
[1738945245812,39.83775193,198.38,198.29,39.80775193]
[1738945246135,39.80775193,198.36,198.29,39.80775193]
[1738945246335,0.03,198.38,198.27,39.80775193]
[1738945246336,39.80775193,198.34,198.27,39.80775193]
[1738945246539,39.83775193,198.38,198.29,39.80775193]
[1738945246717,4.5369,198.37,198.31,39.80775193]
[1738945246914,39.80775193,198.36,198.29,39.80775193]
[1738945247222,0.03,198.38,198.29,39.80775193]
[1738945247223,44.37455193,198.38,198.29,39.80775193]
[1738945247418,39.80775193,198.34,198.27,39.80775193]
[1738945247824,39.80775193,198.36,198.27,39.80775193]
[1738945248016,39.80775193,198.34,198.26,5.0437]
[1738945248220,39.80775193,198.34,198.27,39.80775193]
[1738945248438,44.34515193,198.36,198.28,5.0433]
[1738945248634,44.34515193,198.36,198.29,39.80775193]
[1738945248838,4.5374,198.36,198.31,39.80775193]
[1738945249151,44.37465193,198.38,198.31,39.80775193]
[1738945249724,44.37465193,198.38,198.29,42.62308622]
[1738945250240,44.37465193,198.38,198.29,47.66608622]
[1738945250540,39.80775193,198.34,198.29,2.81533429]
[1738945251329,39.80775193,198.32,198.3,2.81533429]
[1738945251524,46.22165193,198.32,198.3,2.81533429]
[1738945251929,6.4139,198.32,198.3,2.81533429]
[1738945252127,10.952,198.32,198.3,2.81533429]
[1738945252322,10.952,198.32,198.27,39.80775193]
[1738945252519,50.75975193,198.32,198.26,5.99889142]
[1738945252752,39.80775193,198.28,198.26,5.99889142]
[1738945253044,40.75374063,198.28,198.26,5.99889142]
[1738945253542,40.75374063,198.28,198.25,0.063]
[1738945253743,39.80775193,198.26,198.25,0.063]
[1738945253948,39.80775193,198.3,198.25,0.063]
[1738945254144,44.34645193,198.3,198.25,0.063]
[1738945254528,39.80775193,198.26,198.25,0.063]
[1738945254933,39.80775193,198.28,198.25,0.063]
[1738945255322,44.34645193,198.3,198.25,0.063]
[1738945255826,39.80775193,198.28,198.25,0.063]
[1738945256020,4.5392,198.27,198.25,0.063]
[1738945256443,39.80775193,198.26,198.25,0.063]
[1738945258128,4.5399,198.24,198.14,39.80775193]
[1738945258342,39.80775193,198.21,198.14,39.80775193]
[1738945258538,39.80775193,198.23,198.16,39.80775193]
[1738945258722,39.80775193,198.3,198.21,39.80775193]
[1738945259126,39.80775193,198.28,198.11,17.6669]
[1738945259344,39.80775193,198.23,198.17,39.80775193]
[1738945259528,39.80775193,198.25,198.17,39.80775193]
[1738945259728,39.80775193,198.29,198.21,39.80775193]
[1738945260450,44.34675193,198.29,198.21,44.85275193]
[1738945260655,39.80775193,198.25,198.17,39.80775193]
[1738945260830,39.80775193,198.21,198.13,39.80775193]
[1738945261159,39.80775193,198.23,198.15,39.80775193]
[1738945261748,39.80775193,198.25,198.17,39.80775193]
[1738945261956,44.34675193,198.29,198.21,39.80775193]
[1738945262160,4.5385,198.3,198.23,44.85215193]
[1738945262470,39.80775193,198.27,198.19,39.80775193]
[1738945262749,39.80775193,198.27,198.16,20.0]
[1738945262750,39.80775193,198.25,198.17,39.80775193]
[1738945263049,13.41184853,198.25,198.21,0.063]
[1738945263235,39.80775193,198.24,198.21,0.063]
[1738945263557,39.80775193,198.28,198.21,0.063]
[1738945263760,39.80775193,198.3,198.22,39.80775193]
[1738945264264,4.5392,198.27,198.23,5.0]
[1738945264563,39.80775193,198.26,198.23,5.0]
[1738945265168,20.0,198.22,198.21,0.063]
[1738945265336,40.80775193,198.2,198.05,39.80775193]
[1738945265533,13.41184853,198.15,198.04,0.063]
[1738945265756,39.80775193,198.08,198.04,0.063]
[1738945267350,39.80775193,198.13,198.05,39.80775193]
[1738945267552,45.94325193,198.23,198.14,20.0]
[1738945267753,39.80775193,198.27,198.19,39.80775193]
[1738945268043,50.99435193,198.29,198.21,39.80775193]
[1738945268241,39.80775193,198.24,198.17,39.80775193]
[1738945268463,0.94608584,198.23,198.12,5.0472]
[1738945269048,81.3,198.25,198.12,5.0472]
[1738945269259,81.3,198.25,198.19,5.0]
[1738945269466,39.80775193,198.2,198.19,5.0]
[1738945269769,93.97373395,198.2,198.19,5.0]
[1738945269965,93.97373395,198.2,198.07,39.80775193]
[1738945269966,0.12549,198.19,198.06,5.0488]
[1738945270149,39.80775193,198.15,198.07,39.80775193]
[1738945270352,39.80775193,198.13,198.05,39.80775193]
[1738945270666,39.80775193,198.09,198.04,5.063]
[1738945270962,39.80775193,198.11,198.04,10.1124]
[1738945271170,39.80775193,198.13,198.05,39.80775193]
[1738945271373,39.80775193,198.13,198.07,5.0]
[1738945272361,39.80775193,198.15,198.07,49.85635193]
[1738945272759,39.80775193,198.11,198.07,5.0]
[1738945273574,39.80775193,198.13,198.07,10.0486]
[1738945273775,39.80775193,198.08,198.07,5.0]
[1738945274148,54.16655535,198.08,198.07,10.0]
[1738945274463,13.41184853,198.07,198.04,5.063]
[1738945274648,53.21960046,198.05,198.04,5.063]
[1738945275269,59.31170046,198.05,198.04,5.063]
[1738945275442,21.0,198.02,198.01,0.063]
[1738945275649,21.0,198.02,197.89,0.063]
[1738945275650,0.12549,197.98,197.89,0.063]
[1738945275844,13.66282853,198.0,197.89,0.063]
[1738945275845,39.80775193,197.9,197.89,0.063]
[1738945276073,53.21960046,197.9,197.89,0.063]
[1738945276370,14.66282853,197.89,197.88,0.0001]
[1738945276580,13.53733853,197.87,197.84,0.063]
[1738945276776,53.21960046,197.85,197.84,0.063]
[1738945276958,39.80775193,197.85,197.74,39.80775193]
[1738945277147,39.80775193,197.82,197.76,52.77359635]
[1738945277472,39.80775193,197.77,197.76,7.90934442]
[1738945277982,39.80775193,197.77,197.69,44.92905193]
[1738945278355,39.80775193,197.77,197.69,39.87075193]
[1738945278557,13.41184853,197.8,197.69,0.063]
[1738945278558,39.80775193,197.73,197.69,0.063]
[1738945278764,39.80775193,197.71,197.69,0.063]
[1738945278965,39.80775193,197.7,197.69,0.063]
[1738945279284,39.80775193,197.72,197.69,0.063]
[1738945279653,39.80775193,197.71,197.69,0.063]
[1738945280276,16.9259,197.79,197.7,39.80775193]
[1738945280277,39.80775193,197.79,197.7,39.80775193]
[1738945280575,39.80775193,197.8,197.74,39.80775193]
[1738945280888,13.41184853,197.78,197.69,0.063]
[1738945281373,13.53733853,197.81,197.69,0.063]
[1738945281673,0.94837874,197.8,197.69,0.063]
[1738945281874,39.80775193,197.74,197.69,0.063]
[1738945282055,39.80775193,197.71,197.69,0.063]
[1738945282250,39.80775193,197.7,197.69,0.063]
[1738945283069,40.75651542,197.7,197.69,0.063]
[1738945283284,54.16836395,197.7,197.69,0.063]
[1738945283954,39.80775193,197.7,197.69,0.063]
[1738945284675,39.80775193,197.74,197.69,0.063]
[1738945284858,39.80775193,197.76,197.69,0.063]
[1738945285059,39.80775193,197.78,197.71,39.80775193]
[1738945285657,85.8503,197.79,197.71,39.80775193]
[1738945285658,121.10775193,197.79,197.71,39.80775193]
[1738945285863,39.80775193,197.78,197.69,39.87075193]
[1738945286068,39.80775193,197.73,197.69,0.063]
[1738945286252,39.80775193,197.71,197.69,0.063]
[1738945286762,39.80775193,197.74,197.69,0.063]
[1738945286968,39.80775193,197.72,197.69,0.063]
[1738945287358,39.80775193,197.71,197.69,0.063]
[1738945287686,39.80775193,197.7,197.69,0.063]
[1738945287856,53.21960046,197.7,197.69,0.063]
[1738945288058,57.77190046,197.7,197.69,0.063]
[1738945288758,98.7794138,197.7,197.69,0.063]
[1738945288990,20.0,197.67,197.62,0.063]
[1738945289285,53.47058046,197.63,197.62,0.063]
[1738945289456,54.41980054,197.63,197.62,0.063]
[1738945289784,94.22755247,197.63,197.62,0.063]
[1738945289997,100.78145247,197.63,197.62,0.0001]
[1738945290486,59.97370054,197.63,197.62,0.0001]
[1738945290861,58.97370054,197.63,197.62,0.0001]
[1738945291061,99.78145247,197.63,197.62,0.0001]
[1738945291274,98.78145247,197.63,197.62,0.0001]
[1738945291478,99.78145247,197.63,197.62,0.0001]
[1738945291672,58.84821054,197.63,197.62,0.0001]
[1738945291866,45.31087201,197.63,197.62,0.0001]
[1738945292073,39.80775193,197.65,197.62,0.0001]
[1738945293182,39.80775193,197.67,197.62,0.0001]
[1738945293379,39.80775193,197.69,197.62,0.0001]
[1738945293685,39.80775193,197.73,197.65,39.80775193]
[1738945294088,39.80775193,197.71,197.63,39.80775193]
[1738945294461,39.80775193,197.73,197.65,39.80775193]
[1738945294779,39.80775193,197.71,197.65,39.80775193]
[1738945295093,39.80775193,197.71,197.63,5.0599]
[1738945295094,39.80775193,197.69,197.63,5.0599]
[1738945295594,39.80775193,197.67,197.62,5.0601]
[1738945295892,39.80775193,197.65,197.62,0.0001]
[1738945297180,39.80775193,197.63,197.62,0.0001]
[1738945298075,39.80775193,197.65,197.62,0.0001]
[1738945298490,39.80775193,197.67,197.62,0.0001]
[1738945298803,39.80775193,197.63,197.62,0.0001]
[1738945298978,40.75683076,197.63,197.62,0.0001]
[1738945299966,39.80775193,197.63,197.62,0.0001]
[1738945300694,0.03,197.63,197.62,0.0001]
[1738945301683,39.83775193,197.63,197.62,0.0001]
[1738945302395,0.03,197.63,197.62,0.0001]
[1738945302693,39.83775193,197.63,197.62,0.0001]
[1738945303275,44.39165193,197.63,197.62,0.0001]
[1738945303473,39.83775193,197.63,197.62,0.0001]
[1738945303702,0.03,197.63,197.62,0.0001]
[1738945306988,0.03,197.63,197.62,39.80785193]
[1738945307289,0.03,197.63,197.62,5.0603]
[1738945307519,0.03,197.63,197.62,0.0001]
[1738945307880,0.03,197.63,197.62,5.0603]
[1738945308085,0.03,197.63,197.62,0.0001]
[1738945308683,13.44184853,197.63,197.62,0.0001]
[1738945308883,53.24960046,197.63,197.62,0.0001]
[1738945309077,0.03,197.63,197.62,0.0001]
[1738945310174,0.03,197.63,197.62,39.80785193]
[1738945310374,81.3,197.73,197.62,39.80785193]
[1738945310581,81.3,197.73,197.66,39.80775193]
[1738945311074,81.3,197.73,197.67,39.80775193]
[1738945311509,39.80775193,197.72,197.64,39.80775193]
[1738945311681,39.80775193,197.67,197.62,0.0001]
[1738945312181,39.80775193,197.71,197.63,39.80775193]
[1738945312384,39.80775193,197.68,197.62,5.06]
[1738945312586,0.03,197.63,197.62,5.06]
[1738945312880,0.03,197.63,197.62,0.0001]
[1738945313091,53.24960046,197.63,197.62,0.0001]
[1738945313475,57.92899046,197.63,197.62,0.0001]
[1738945315904,39.83775193,197.63,197.62,0.0001]
[1738945316088,44.39165193,197.63,197.62,0.0001]
[1738945317082,57.80350046,197.63,197.62,0.0001]
[1738945317300,0.12549,197.61,197.49,39.87075193]
[1738945317514,0.12549,197.61,197.49,0.063]
[1738945317515,39.80775193,197.54,197.49,0.063]
[1738945317698,39.80775193,197.52,197.49,0.063]
[1738945317889,39.80775193,197.53,197.49,0.063]
[1738945318092,13.41184853,197.54,197.49,0.063]
[1738945318287,53.21960046,197.54,197.49,0.063]
[1738945318688,39.80775193,197.53,197.49,0.063]
[1738945318901,39.80775193,197.56,197.49,0.063]
[1738945319108,39.80775193,197.54,197.49,0.063]
[1738945319586,39.80775193,197.53,197.49,0.063]
[1738945319786,13.41184853,197.56,197.49,0.063]